bitfinex/quotes_SOLUSD_20240917
["timestamp","ask_amount","ask_price","bid_price","bid_amount"]
[1726562074021,23.9628211,132.8,132.73,18.8339]
[1726562074187,31.1883211,132.8,132.73,18.8339]
[1726562074589,3.9628211,132.79,132.73,18.8339]
[1726562074805,3.9628211,132.78,132.73,18.8339]
[1726562075298,7.5318,132.77,132.73,26.3675]
[1726562075822,11.4946211,132.77,132.73,26.3675]
[1726562076409,7.5318,132.77,132.73,26.3675]
[1726562082214,7.5324,132.76,132.73,18.8339]
[1726562082430,7.5324,132.76,132.72,24.0578]
[1726562082945,7.5324,132.76,132.72,7.5344]
[1726562083309,7.533,132.75,132.71,7.535]
[1726562083617,7.5331,132.75,132.71,7.5352]
[1726562086805,20.0,132.78,132.72,9.0412448]
[1726562087003,7.532,132.77,132.73,7.5339]
[1726562093357,11.1883211,132.8,132.72,26.3705]
[1726562093358,7.5324,132.76,132.72,26.3705]
[1726562094943,7.5331,132.75,132.72,18.8361]
[1726562095656,7.5331,132.75,132.71,7.5351]
[1726562112331,7.5325,132.76,132.72,7.5345]
[1726562113738,22.77037132,132.79,132.73,18.8348]
[1726562113739,7.5308,132.79,132.73,18.8348]
[1726562113939,11.16857132,132.8,132.73,15.7475]
[1726562113940,7.5302,132.8,132.73,15.7475]
[1726562114143,7.5302,132.8,132.76,7.5323]
[1726562118339,7.5302,132.8,132.75,18.8317]
[1726562118340,7.5297,132.81,132.77,7.5317]
[1726562118544,7.5291,132.82,132.77,7.5317]
[1726562123637,7.5285,132.83,132.79,7.5306]
[1726562123968,7.5285,132.83,132.8,1.50585283]
[1726562124470,0.260412,132.84,132.8,1.5057119]
[1726562124969,0.260412,132.84,132.82,7.5289]
[1726562125266,0.260412,132.84,132.82,9.03437906]
[1726562125469,0.260412,132.84,132.82,7.5289]
[1726562125654,0.260412,132.84,132.83,7.5284]
[1726562126647,0.260412,132.84,132.82,7.5288]
[1726562131076,0.260412,132.84,132.83,7.5284]
[1726562131450,0.260412,132.84,132.82,7.5288]
[1726562134174,0.260412,132.84,132.82,7.5289]
[1726562134976,0.260412,132.84,132.83,7.5284]
[1726562138989,0.260412,132.84,132.83,9.03369451]
[1726562140061,0.260412,132.84,132.83,31.305284]
[1726562143799,0.260412,132.84,132.83,7.5284]
[1726562149321,0.260412,132.84,132.83,31.305284]
[1726562151201,0.260412,132.84,132.83,48.14116045]
[1726562151509,0.260412,132.84,132.83,60.32852839]
[1726562151879,0.260412,132.84,132.83,80.32852839]
[1726562152483,0.260412,132.88,132.87,50.118284]
[1726562153011,0.260412,132.88,132.87,73.307684]
[1726562156709,0.260412,132.88,132.87,74.81199742]
[1726562156898,0.260412,132.88,132.87,74.81199752]
[1726562157105,0.260412,132.88,132.87,86.99936546]
[1726562157413,0.260412,132.88,132.87,85.49505194]
[1726562160395,0.260412,132.88,132.87,105.49505194]
[1726562160931,0.260412,132.92,132.91,26.3335]
[1726562161251,0.260412,132.92,132.91,50.110384]
[1726562161590,0.260412,132.92,132.91,42.586584]
[1726562161993,0.260412,132.92,132.91,50.110384]
[1726562165413,0.260412,132.92,132.91,26.3335]
[1726562168020,0.260412,132.92,132.91,50.110384]
[1726562169504,0.260412,132.92,132.91,26.3335]
[1726562174710,0.260412,132.92,132.91,50.110384]
[1726562175008,0.260412,132.92,132.91,65.715284]
[1726562175202,0.260412,132.92,132.91,67.21939685]
[1726562176433,0.260412,132.92,132.91,65.715284]
[1726562180211,0.260412,132.92,132.91,67.21938146]
[1726562180413,0.260412,132.92,132.91,65.715284]
[1726562200226,0.260412,132.92,132.91,26.3335]
[1726562207762,0.260412,132.92,132.91,50.110384]
[1726562233084,0.260412,132.92,132.91,26.3335]
[1726562238075,0.260412,132.92,132.91,18.8097]
[1726562238386,0.260412,132.92,132.91,26.3335]
[1726562238588,0.260412,132.92,132.91,18.8097]
[1726562238966,0.260412,132.92,132.91,27.83781502]
[1726562239292,0.260412,132.92,132.91,26.3335]
[1726562252990,0.260412,132.92,132.91,50.110384]
[1726562254604,0.260412,132.92,132.91,26.3335]
[1726562257416,0.260412,132.92,132.91,26.3335]
[1726562263419,0.260412,132.92,132.91,18.8097]
[1726562264429,0.260412,132.92,132.91,26.3335]
[1726562267227,7.783812,132.92,132.89,26.337]
[1726562268326,7.524,132.91,132.87,7.5259]
[1726562268510,7.5245,132.9,132.87,7.5259]
[1726562269017,7.524,132.91,132.87,7.5259]
[1726562269427,11.72718332,132.92,132.88,7.5254]
[1726562269807,7.784112,132.92,132.88,7.5254]
[1726562270033,11.72718332,132.92,132.88,7.5254]
[1726562270535,7.784112,132.92,132.88,7.5254]
[1726562270831,0.260412,132.92,132.91,7.5238]
[1726562271132,0.260412,132.92,132.91,26.3335]
[1726562281149,0.260412,132.92,132.91,50.110384]
[1726562296752,0.260412,132.92,132.91,26.3335]
[1726562297132,7.784012,132.92,132.88,26.3379]
[1726562297527,7.783912,132.92,132.88,26.3379]
[1726562302253,7.783912,132.92,132.89,7.525]
[1726562303548,0.260412,132.92,132.89,7.525]
[1726562303759,0.260412,132.92,132.9,7.5244]
[1726562304056,0.260412,132.92,132.9,26.3353]
[1726562304231,0.260412,132.92,132.91,7.5238]
[1726562305752,0.260412,132.92,132.91,31.300684]
[1726562310638,0.260412,132.92,132.91,7.5238]
[1726562313953,0.260412,132.92,132.91,32.80507878]
[1726562314157,0.260412,132.92,132.91,31.300684]
[1726562317045,0.260412,132.92,132.91,7.5238]
[1726562339193,0.260412,132.92,132.9,26.3352]
[1726562339881,0.260412,132.92,132.91,7.5238]
[1726562349098,0.260412,132.92,132.9,26.3351]
[1726562349309,0.260412,132.92,132.91,7.5238]
[1726562357714,0.260412,132.92,132.9,26.3351]
[1726562359106,0.260412,132.92,132.91,7.5238]
[1726562397127,0.260412,132.92,132.91,32.80512065]
[1726562397329,0.260412,132.92,132.91,49.30672065]
[1726562402748,0.260412,132.92,132.91,47.802284]
[1726562415555,0.260412,132.92,132.91,49.30661557]
[1726562417171,0.260412,132.92,132.91,55.82011557]
[1726562417344,0.260412,132.96,132.91,55.82011557]
[1726562417345,0.260412,132.96,132.95,26.3256]
[1726562417661,0.260412,132.96,132.95,86.63709496]
[1726562419552,0.260412,132.96,132.95,85.13335194]
[1726562422343,0.260412,132.96,132.95,72.945984]
[1726562428877,0.260412,132.96,132.95,106.6368943]
[1726562429059,0.260412,132.96,132.95,105.13335194]
[1726562429467,0.260412,132.96,132.95,106.63682285]
[1726562430280,0.260412,132.96,132.95,105.13335194]
[1726562430482,0.260412,132.96,132.95,106.63675419]
[1726562430774,1.2e-05,132.96,132.95,106.63674873]
[1726562430976,1.2e-05,132.96,132.95,135.13335194]
[1726562431164,1.2e-05,132.96,132.95,122.945984]
[1726562431365,1.2e-05,132.96,132.95,135.13335194]
[1726562431557,1.2e-05,132.96,132.95,136.63666995]
[1726562431757,1.2e-05,132.96,132.95,124.44930201]
[1726562431979,1.2e-05,132.96,132.95,111.35646794]
[1726562432179,1.2e-05,132.96,132.95,99.1691]
[1726562432471,1.2e-05,132.96,132.95,111.35646794]
[1726562433173,1.2e-05,132.96,132.95,135.13335194]
[1726562434055,1.2e-05,132.96,132.95,122.945984]
[1726562435479,1.2e-05,132.96,132.95,105.13335194]
[1726562436454,1.2e-05,132.96,132.95,135.13335194]
[1726562440276,1.2e-05,132.96,132.95,99.1691]
[1726562440473,1.2e-05,132.96,132.95,111.35646794]
[1726562441675,1.2e-05,132.96,132.95,136.63689814]
[1726562442001,1.2e-05,132.96,132.95,135.13335194]
[1726562443901,1.2e-05,132.96,132.95,136.63650807]
[1726562445299,1.2e-05,132.96,132.95,135.13335194]
[1726562447882,1.2e-05,132.96,132.95,157.76335194]
[1726562451485,0.260412,133.0,132.99,63.9145]
[1726562451695,0.260412,133.0,132.99,149.87875194]
[1726562452303,0.260412,133.0,132.99,137.691384]
[1726562452806,0.260412,133.0,132.99,149.87875194]
[1726562454287,0.260412,133.0,132.99,137.691384]
[1726562468011,0.260412,133.0,132.99,149.87875194]
[1726562468215,0.260412,133.0,132.99,125.71515777]
[1726562470334,0.260412,133.0,132.99,125.71383037]
[1726562471130,0.260412,133.0,132.99,155.71383037]
[1726562473936,0.260412,133.0,132.99,155.71435443]
[1726562477641,0.260412,133.0,132.99,155.71081481]
[1726562479145,0.260412,133.0,132.99,125.71081481]
[1726562479824,1.2e-05,133.0,132.99,125.71081481]
[1726562480940,1.2e-05,133.0,132.99,119.87875194]
[1726562481154,1.2e-05,133.0,132.99,125.70950777]
[1726562481943,1.2e-05,133.0,132.99,125.70930125]
[1726562482121,1.2e-05,133.0,132.99,155.70930125]
[1726562484452,1.2e-05,133.0,132.99,155.7092965]
[1726562487545,1.2e-05,133.0,132.99,143.52192856]
[1726562488362,1.2e-05,133.0,132.99,137.691384]
[1726562488644,1.2e-05,133.0,132.99,155.70952092]
[1726562491359,1.2e-05,133.0,132.99,143.52215298]
[1726562492260,1.2e-05,133.0,132.99,155.70952092]
[1726562494858,1.2e-05,133.0,132.99,155.70914789]
[1726562495450,1.2e-05,133.0,132.99,143.52187763]
[1726562498565,1.2e-05,133.0,132.99,143.52175797]
[1726562498964,1.2e-05,133.0,132.99,137.691384]
[1726562499162,1.2e-05,133.0,132.99,143.52175797]
[1726562499561,1.2e-05,133.0,132.99,155.70912591]
[1726562500165,1.2e-05,133.0,132.99,155.70921706]
[1726562500473,0.260412,133.04,132.99,155.70921706]
[1726562500474,0.260412,133.04,133.03,87.672184]
[1726562500765,0.260412,133.04,133.03,99.85955194]
[1726562501569,0.260412,133.04,133.03,87.672184]
[1726562506285,0.260412,133.04,133.03,26.3098]
[1726562536111,0.260412,133.04,132.96,6.2145]
[1726562536268,7.518,133.02,132.98,26.3183]
[1726562536473,7.5182,133.01,132.98,7.5199]
[1726562536674,7.5178,133.02,132.98,7.5199]
[1726562538701,7.5182,133.01,132.97,26.3212]
[1726562539192,7.5182,133.01,132.98,7.5199]
[1726562539605,7.5177,133.02,132.98,7.5199]
[1726562540496,7.5183,133.01,132.98,7.5199]
[1726562540668,7.5183,133.01,132.97,26.3212]
[1726562550611,0.260412,133.04,133.0,7.5183]
[1726562550788,7.5171,133.03,132.99,26.3174]
[1726562551813,7.5171,133.03,133.0,7.5187]
[1726562552179,0.260412,133.04,133.01,7.5181]
[1726562553475,0.260412,133.04,133.02,7.5176]
[1726562555101,0.260412,133.04,133.03,7.5171]
[1726562556715,0.260412,133.04,133.02,7.5174]
[1726562557104,0.260412,133.04,133.03,7.5171]
[1726562560612,0.260412,133.04,133.02,7.5174]
[1726562561200,0.260412,133.04,133.01,18.7953]
[1726562561201,0.260412,133.04,133.03,7.5171]
[1726562565335,0.260412,133.04,133.03,26.3098]
[1726562570717,0.260412,133.04,133.03,18.7927]
[1726562571623,0.260412,133.04,133.0,15.7529]
[1726562571624,0.260412,133.04,133.01,26.3135]
[1726562571807,7.777312,133.04,133.0,23.2715]
[1726562572004,7.777312,133.04,133.0,7.5186]
[1726562572005,7.5171,133.03,133.0,7.5186]
[1726562572216,0.260412,133.04,132.98,7.5197]
[1726562572423,19.051912,133.04,132.97,35.1218]
[1726562572713,7.5183,133.01,132.97,42.6421]
[1726562575035,7.5178,133.02,132.98,7.5198]
[1726562575407,7.5182,133.01,132.98,7.5198]
[1726562575640,7.5178,133.02,132.98,7.5198]
[1726562581233,7.5183,133.01,132.97,42.642]
[1726562581440,23.00265043,133.04,132.97,42.642]
[1726562582442,7.5189,133.0,132.97,42.642]
[1726562585646,7.5184,133.01,132.97,42.642]
[1726562586945,7.5184,133.01,132.98,7.5198]
[1726562589539,7.5179,133.02,132.98,7.5198]
[1726562589922,7.5179,133.02,132.99,7.5192]
[1726562595847,7.5179,133.02,132.98,7.5197]
[1726562598259,4.21115043,133.04,133.01,7.5178]
[1726562598557,0.260412,133.04,133.02,7.5175]
[1726562599338,0.260412,133.04,133.03,26.3098]
[1726562602356,0.260412,133.04,133.03,56.583784]
[1726562618076,0.260412,133.04,133.03,68.77115194]
[1726562618256,0.260412,133.04,133.03,120.27360109]
[1726562618577,0.260412,133.08,133.07,50.078784]
[1726562618772,0.260412,133.08,133.07,66.277584]
[1726562622872,0.260412,133.08,133.07,42.5007]
[1726562623175,0.260412,133.08,133.07,18.7871]
[1726562623390,0.260412,133.08,133.06,7.5153]
[1726562623555,0.260412,133.08,133.05,7.5158]
[1726562623755,7.774812,133.08,133.04,41.9733]
[1726562624081,7.774812,133.08,133.04,18.7906]
[1726562624277,0.260412,133.08,133.01,33.8505]
[1726562624483,0.260412,133.08,133.02,30.0]
[1726562624685,7.5158,133.06,133.02,30.0]
[1726562625063,7.5158,133.06,133.01,41.3683]
[1726562625651,7.5158,133.06,133.02,7.5174]
[1726562625853,0.260412,133.08,133.03,7.517]
[1726562626057,7.5153,133.07,133.02,7.5175]
[1726562626571,7.5153,133.07,133.03,7.5168]
[1726562626984,0.260412,133.08,133.04,7.516]
[1726562628876,7.515,133.07,133.03,26.3084]
[1726562629190,7.5156,133.06,133.01,22.5735]
[1726562629978,7.5161,133.05,133.01,22.5735]
[1726562630194,7.5161,133.05,133.01,7.5177]
[1726562630795,7.5161,133.05,133.0,32.3832]
[1726562631002,7.5161,133.05,133.0,26.3145]
[1726562631701,7.5161,133.05,133.01,7.5182]
[1726562631996,8.0065,133.07,133.0,18.796]
[1726562631997,7.5171,133.03,133.0,18.796]
[1726562632783,7.5177,133.02,132.98,22.6904]
[1726562633068,7.5182,133.01,132.97,26.3207]
[1726562633286,18.7901,133.05,132.97,18.8004]
[1726562633287,7.519,133.0,132.97,18.8004]
[1726562633668,7.5183,133.01,132.97,18.8004]
[1726562634069,7.5183,133.01,132.97,26.3207]
[1726562634285,7.519,133.0,132.97,18.8004]
[1726562634688,7.5183,133.01,132.97,26.3208]
[1726562635666,7.5178,133.02,132.98,7.5199]
[1726562638701,7.5171,133.03,132.99,7.5193]
[1726562638886,7.5166,133.04,133.0,7.5186]
[1726562641600,7.5171,133.03,132.99,26.3169]
[1726562641801,7.5178,133.02,132.99,18.7978]
[1726562642910,20.0,133.05,132.96,23.776884]
[1726562643418,7.5173,133.03,132.99,7.5192]
[1726562643789,20.0,133.05,132.98,18.7997]
[1726562644112,7.5166,133.04,133.0,7.5187]
[1726562644314,7.5166,133.04,133.0,26.3156]
[1726562645007,7.5161,133.05,133.01,7.518]
[1726562645202,7.5163,133.05,133.01,7.518]
[1726562645512,14.5168,133.07,133.01,7.518]
[1726562645899,7.5161,133.05,133.01,7.518]
[1726562652216,7.5156,133.06,133.02,26.3113]
[1726562652924,7.5148,133.07,133.04,18.7913]
[1726562655011,7.5154,133.06,133.02,7.5176]
[1726562655408,18.7881,133.07,133.0,23.776884]
[1726562655799,7.5167,133.04,133.01,7.5181]
[1726562657724,7.5162,133.05,133.01,7.5181]
[1726562659219,7.5168,133.04,133.0,26.3155]
[1726562659422,18.7881,133.07,132.99,15.0171]
[1726562659726,7.5177,133.02,132.99,15.0171]
[1726562661013,7.5177,133.02,132.99,22.5364]
[1726562661828,7.5173,133.03,133.0,7.5187]
[1726562662033,7.5168,133.04,133.0,7.5187]
[1726562662528,7.5161,133.05,133.01,26.3134]
[1726562663527,7.5161,133.05,133.02,7.5176]
[1726562663827,7.5161,133.05,133.01,26.3135]
[1726562664334,7.5157,133.06,133.02,7.5174]
[1726562664923,7.5148,133.07,133.03,7.5167]
[1726562666302,0.260412,133.08,133.01,18.7955]
[1726562666634,7.2445378,133.07,133.01,18.7955]
[1726562667337,7.5166,133.04,133.01,18.7955]
[1726562669121,7.5166,133.04,133.0,7.5184]
[1726562670540,22.99725043,133.08,133.01,7.5178]
[1726562670915,22.99725043,133.08,133.0,26.3156]
[1726562671638,7.5165,133.04,133.01,7.5181]
[1726562672517,7.5165,133.04,133.0,26.3155]
[1726562674037,22.73923843,133.06,132.99,22.5364]
[1726562675021,7.5176,133.02,132.99,15.0171]
[1726562675215,7.5176,133.02,132.99,22.5363]
[1726562676528,7.5172,133.03,132.99,22.5363]
[1726562676945,7.5167,133.04,133.0,7.5186]
[1726562679826,11.46703843,133.05,133.01,7.5179]
[1726562680025,7.5165,133.04,133.01,7.5179]
[1726562681122,7.5165,133.04,132.99,33.815]
[1726562681123,7.5165,133.04,133.0,7.5186]
[1726562681924,7.5171,133.03,133.0,7.5186]
[1726562682123,3.95073843,133.05,133.0,7.5186]
[1726562682327,7.5167,133.04,133.0,7.5186]
[1726562683043,3.95073843,133.05,132.99,15.0171]
[1726562683044,7.5182,133.01,132.99,15.0171]
[1726562685046,7.5179,133.02,132.99,15.0171]
[1726562685254,7.5179,133.02,132.99,22.5363]
[1726562685467,7.5173,133.03,132.99,22.5363]
[1726562685830,7.5173,133.03,133.0,7.5186]
[1726562686033,11.46743843,133.04,133.0,7.5186]
[1726562688255,7.5167,133.04,133.0,7.5186]
[1726562688755,11.46743843,133.04,133.0,7.5186]
[1726562689956,3.95073843,133.04,132.99,22.5362]
[1726562690149,7.5173,133.03,132.99,22.5362]
[1726562690767,7.5178,133.02,132.99,15.0171]
[1726562691961,7.5178,133.02,132.99,22.5364]
[1726562694851,7.5172,133.03,132.99,22.5364]
[1726562695571,47.65433843,133.04,132.94,0.260412]
[1726562695740,3.95073843,133.01,132.95,5.83090596]
[1726562695952,11.46933843,133.01,132.95,18.8027]
[1726562696165,7.519,133.0,132.96,7.5208]
[1726562696640,7.5193,132.99,132.96,7.5208]
[1726562697949,7.5193,132.99,132.95,26.324]
[1726562699767,7.52,132.98,132.95,26.324]
[1726562699971,7.52,132.98,132.94,7.782312]
[1726562700645,7.5206,132.97,132.94,0.260412]
[1726562700969,7.5201,132.98,132.94,7.782512]
[1726562703355,7.521,132.96,132.94,0.260412]
[1726562704052,7.5206,132.97,132.94,0.260412]
[1726562704661,7.5211,132.96,132.94,0.260412]
[1726562704873,7.5216,132.95,132.94,0.260412]
[1726562705370,7.5216,132.95,132.9,7.784712]
[1726562705371,7.5231,132.93,132.9,0.260412]
[1726562706165,7.5233,132.92,132.9,0.260412]
[1726562706365,7.5238,132.91,132.9,0.260412]
[1726562707270,7.5234,132.92,132.9,0.260412]
[1726562709370,7.5229,132.93,132.9,0.260412]
[1726562714265,7.5219,132.95,132.91,7.5237]
[1726562715371,7.5219,132.95,132.91,23.6366]
[1726562716356,7.5212,132.96,132.92,26.3313]
[1726562716576,7.5212,132.96,132.93,7.5226]
[1726562716765,7.5206,132.97,132.93,7.5226]
[1726562717177,14.81841718,133.0,132.92,18.8082]
[1726562717178,7.5204,132.98,132.94,7.522]
[1726562717973,7.5204,132.98,132.95,7.5215]
[1726562718173,7.5195,132.99,132.95,7.5215]
[1726562720584,18.7968,133.01,132.94,18.8054]
[1726562720896,18.7968,133.01,132.94,26.3275]
[1726562720897,7.52,132.98,132.94,26.3275]
[1726562721395,7.52,132.98,132.95,7.5215]
[1726562722175,7.5195,132.99,132.95,7.5215]
[1726562722370,28.11131219,133.01,132.95,7.5215]
[1726562722579,7.5199,132.98,132.94,26.3273]
[1726562724278,7.5206,132.97,132.94,18.8054]
[1726562724576,7.5206,132.97,132.93,7.5225]
[1726562725094,28.11131219,133.01,132.92,7.5229]
[1726562725095,7.521,132.96,132.92,7.5229]
[1726562726581,7.521,132.96,132.93,7.5227]
[1726562729403,7.5207,132.97,132.93,7.5227]
[1726562730282,7.5211,132.96,132.93,7.5227]
[1726562730481,7.5211,132.96,132.92,7.5231]
[1726562732901,7.5216,132.95,132.92,7.5231]
[1726562733106,7.5212,132.96,132.92,7.5231]
[1726562733311,7.5216,132.95,132.92,7.5231]
[1726562733618,7.5216,132.95,132.91,42.4448]
[1726562734684,18.7984,132.99,132.91,42.4448]
[1726562734685,7.5206,132.97,132.93,7.5224]
[1726562735597,7.5212,132.96,132.93,7.5224]
[1726562736404,7.5212,132.96,132.92,7.523]
[1726562745004,7.5212,132.96,132.93,7.5226]
[1726562745223,7.5211,132.96,132.92,7.5229]
[1726562746227,7.5211,132.96,132.91,34.9212]
[1726562746228,7.5211,132.96,132.93,7.5227]
[1726562747334,7.5208,132.97,132.94,7.5221]
[1726562748797,11.47083843,132.98,132.94,7.5221]
[1726562749003,7.5201,132.98,132.94,7.5221]
[1726562749304,11.46983843,133.0,132.96,7.521]
[1726562749500,7.5191,133.0,132.96,7.521]
[1726562749826,7.5191,133.0,132.97,7.5204]
[1726562752231,7.5184,133.01,132.97,26.3215]
[1726562752916,7.5184,133.01,132.98,7.5199]
[1726562753625,7.5184,133.01,132.97,26.3214]
[1726562754421,7.5188,133.0,132.97,18.8011]
[1726562754619,7.5188,133.0,132.97,26.3215]
[1726562755338,7.5184,133.01,132.97,26.3215]
[1726562756710,7.5178,133.02,132.97,18.8011]
[1726562757124,7.5178,133.02,132.98,7.5197]
[1726562759014,7.5178,133.02,132.99,7.5193]
[1726562759338,7.777012,133.04,133.0,7.5187]
[1726562761016,7.5171,133.03,133.0,7.5187]
[1726562761431,7.518,133.02,132.99,15.68]
[1726562764136,7.5187,133.0,132.96,34.3472]
[1726562765237,7.5191,133.0,132.96,23.0656]
[1726562765456,2.06997439,133.03,132.96,15.5446]
[1726562765457,18.7944,133.02,132.96,15.5446]
[1726562765751,7.5195,132.99,132.96,15.5446]
[1726562768038,7.5186,133.01,132.97,7.52]
[1726562768643,7.5187,133.0,132.96,41.8677]
[1726562769032,7.5194,132.99,132.96,34.3469]
[1726562769233,42.569884,133.03,132.96,34.3469]
[1726562769538,55.83513462,133.03,132.96,15.5446]
[1726562769745,18.7958,133.01,132.96,15.5446]
[1726562770124,7.52,132.98,132.96,15.5446]
[1726562771433,7.5195,132.99,132.96,15.5446]
[1726562774253,7.519,133.0,132.96,23.0656]
[1726562774652,7.5183,133.01,132.97,7.52]
[1726562776027,7.5191,133.0,132.96,23.0655]
[1726562777168,3.95073843,133.03,132.94,15.4281]
[1726562777331,7.5212,132.96,132.94,15.4281]
[1726562777659,2.06997439,132.99,132.93,6.0023]
[1726562777660,7.2445378,132.97,132.93,6.0023]
[1726562777953,7.2445378,132.97,132.91,15.4281]
[1726562778159,11.19527623,132.97,132.91,15.4281]
[1726562779038,7.5227,132.93,132.91,15.4281]
[1726562782265,7.5233,132.92,132.91,15.4281]
[1726562783665,7.5233,132.92,132.9,6.262712]
[1726562783857,7.5238,132.91,132.9,0.260412]
[1726562788959,7.5259,132.88,132.86,0.260412]
[1726562789165,7.5261,132.87,132.86,0.260412]
[1726562790175,23.776884,132.91,132.86,0.260412]
[1726562790176,7.5257,132.88,132.86,0.260412]
[1726562792074,18.8092,132.92,132.86,0.260412]
[1726562793348,7.5248,132.9,132.86,7.787012]
[1726562802079,7.524,132.91,132.88,22.7898]
[1726562804069,7.5245,132.9,132.88,22.7898]
[1726562805783,7.525,132.89,132.88,22.7898]
[1726562806469,7.5247,132.9,132.88,22.7898]
[1726562806887,7.525,132.89,132.88,22.7898]
[1726562808080,7.525,132.89,132.88,16.4845]
[1726562809483,7.525,132.89,132.86,0.260412]
[1726562810169,7.5255,132.88,132.86,0.260412]
[1726562811071,7.5252,132.89,132.86,0.260412]
[1726562814269,7.5246,132.9,132.86,7.787012]
[1726562814467,7.5246,132.9,132.87,7.526]
[1726562819494,7.5246,132.9,132.86,7.786912]
[1726562820496,7.5241,132.91,132.87,7.5258]
[1726562821904,7.5244,132.9,132.87,7.5258]
[1726562827095,7.524,132.91,132.88,7.5254]
[1726562827295,3.95073843,132.94,132.88,7.5254]
[1726562827597,7.5237,132.92,132.88,7.5254]
[1726562828183,7.5239,132.91,132.88,7.5254]
[1726562830402,7.5235,132.92,132.88,7.5254]
[1726562831699,7.5239,132.91,132.88,7.5254]
[1726562833779,7.5235,132.92,132.88,7.5254]
[1726562835183,11.47423843,132.92,132.88,7.5254]
[1726562837501,11.47423843,132.92,132.89,21.6282]
[1726562837803,7.5235,132.92,132.89,29.1531]
[1726562838186,11.47353843,132.93,132.9,7.5244]
[1726562838379,3.95073843,132.94,132.91,7.5238]
[1726562838581,11.47273843,132.95,132.91,7.5238]
[1726562838804,11.47273843,132.95,132.92,7.5232]
[1726562839007,7.522,132.95,132.92,7.5232]
[1726562839299,3.95073843,132.96,132.92,7.5232]
[1726562839300,11.47203843,132.96,132.92,7.5232]
[1726562839715,11.47203843,132.96,132.93,16.5171]
[1726562840093,7.5213,132.96,132.93,16.5171]
[1726562843694,7.5213,132.96,132.93,30.3843]
[1726562843893,3.95073843,132.99,132.93,30.3843]
[1726562844092,7.5204,132.98,132.93,49.191]
[1726562844420,7.5204,132.98,132.94,7.522]
[1726562844814,7.5205,132.97,132.94,7.522]
[1726562846902,7.52,132.98,132.94,7.522]
[1726562850696,7.5194,132.99,132.95,7.5214]
[1726562851099,7.5194,132.99,132.96,7.5208]
[1726562853308,7.5194,132.99,132.95,7.5213]
[1726562859315,7.5194,132.99,132.94,18.8041]
[1726562859316,19.057412,133.0,132.94,26.3261]
[1726562860217,7.5202,132.98,132.94,26.3261]
[1726562861425,7.52,132.98,132.95,7.5214]
[1726562863703,7.5196,132.99,132.95,7.5214]
[1726562865893,7.5196,132.99,132.91,12.21462098]
[1726562865894,0.260412,133.0,132.96,22.1772]
[1726562867213,0.260412,133.0,132.97,26.3203]
[1726562867700,7.779212,133.0,132.97,26.3203]
[1726562875246,7.779212,133.0,132.97,18.8]
[1726562878432,7.5194,132.99,132.96,29.698]
[1726562879416,7.5202,132.98,132.96,22.1772]
[1726562879612,2.33038639,133.0,132.93,6.5308]
[1726562879834,18.7986,132.99,132.93,6.5308]
[1726562880137,23.776884,132.98,132.92,15.2669]
[1726562880817,7.5227,132.93,132.92,15.2669]
[1726562881017,7.5223,132.94,132.92,15.2669]
[1726562881521,7.5209,132.97,132.93,7.5226]
[1726562881738,19.058612,133.0,132.94,7.5221]
[1726562881739,7.52,132.98,132.94,7.5221]
[1726562882030,19.058612,133.0,132.92,34.0747]
[1726562882031,7.5205,132.97,132.93,7.5225]
[1726562882418,7.52,132.98,132.94,7.5219]
[1726562882619,7.5195,132.99,132.95,7.5214]
[1726562883943,7.52,132.98,132.94,32.6853]
[1726562884319,7.5204,132.97,132.94,25.1633]
[1726562887023,7.5204,132.97,132.94,6.358]